bitfinex/quotes_SOLUSD_20230105
["timestamp","ask_amount","ask_price","bid_price","bid_amount"]
[1672884930742,46.42284551,13.149,13.142,112.6194]
[1672884930961,69.25611395,13.149,13.142,112.6194]
[1672884931366,69.25611395,13.148,13.135,57.13]
[1672884931572,20.0,13.147,13.135,57.13]
[1672884931784,20.0,13.146,13.134,57.14]
[1672884932114,20.0,13.145,13.134,176.044]
[1672884932316,89.25611395,13.145,13.134,118.904]
[1672884932538,22.83326844,13.144,13.134,118.904]
[1672884932840,69.25611395,13.144,13.135,312.0]
[1672884933046,20.0,13.143,13.135,312.0]
[1672884933458,20.0,13.143,13.136,20.0]
[1672884933666,20.0,13.143,13.135,312.0]
[1672884933896,20.0,13.143,13.136,57.13]
[1672884934090,20.0,13.147,13.136,57.13]
[1672884934515,20.0,13.146,13.136,57.13]
[1672884934732,57.07,13.15,13.137,20.0]
[1672884934946,63.11983683,13.151,13.137,20.0]
[1672884935150,22.83326844,13.15,13.139,20.0]
[1672884935356,22.83326844,13.15,13.139,131.5934]
[1672884935571,22.83326844,13.15,13.14,57.11]
[1672884935904,22.83326844,13.15,13.141,20.0]
[1672884937377,22.83326844,13.15,13.14,175.7487]
[1672884937775,22.83326844,13.15,13.141,20.0]
[1672884938205,22.83326844,13.15,13.142,57.1]
[1672884938613,22.83326844,13.15,13.143,20.0]
[1672884939366,57.05,13.154,13.142,57.1]
[1672884939576,20.0,13.153,13.142,57.1]
[1672884939986,42.83326844,13.153,13.142,57.1]
[1672884941451,20.0,13.151,13.141,57.11]
[1672884941668,20.0,13.151,13.14,118.6387]
[1672884941879,79.90326844,13.15,13.14,118.6387]
[1672884942184,79.90326844,13.15,13.143,312.0]
[1672884942394,22.83326844,13.149,13.143,312.0]
[1672884942619,22.83326844,13.149,13.143,262.0]
[1672884943984,40.28656839,13.151,13.143,262.0]
[1672884944313,20.0,13.153,13.144,20.0]
[1672884944712,40.28656839,13.155,13.144,20.0]
[1672884944940,20.0,13.154,13.141,20.0]
[1672884945131,20.0,13.154,13.142,284.3]
[1672884945338,57.04,13.157,13.142,304.3]
[1672884945558,57.02,13.161,13.142,304.3]
[1672884945760,22.83326844,13.161,13.143,20.0]
[1672884945969,22.83326844,13.16,13.144,20.0]
[1672884946193,22.83326844,13.16,13.145,340.5517]
[1672884946707,22.83326844,13.16,13.148,20.0]
[1672884947128,57.01,13.163,13.15,227.2]
[1672884947352,22.83326844,13.162,13.151,340.5517]
[1672884947553,57.01,13.163,13.152,20.0]
[1672884947771,57.0,13.167,13.153,335.6157]
[1672884948093,57.0,13.167,13.154,20.0]
[1672884948300,79.83326844,13.167,13.158,312.0]
[1672884948831,22.83326844,13.167,13.16,20.0]
[1672884950307,22.83326844,13.167,13.159,57.03]
[1672884950616,22.83326844,13.167,13.159,77.03]
[1672884951553,22.83326844,13.167,13.16,20.0]
[1672884952272,48.07573345,13.172,13.16,20.0]
[1672884952479,56.97,13.172,13.16,132.3962]
[1672884952812,79.80326844,13.172,13.16,132.3962]
[1672884953018,22.83326844,13.171,13.162,20.0]
[1672884955329,22.83326844,13.171,13.163,57.01]
[1672884955541,22.83326844,13.171,13.166,312.0]
[1672884958082,22.83326844,13.171,13.166,311.0]
[1672884960184,36.28083506,13.173,13.166,311.0]
[1672884960500,20.0,13.172,13.167,20.0]
[1672884961115,20.0,13.175,13.167,20.0]
[1672884961326,20.0,13.176,13.167,20.0]
[1672884961537,56.28083506,13.176,13.163,57.01]
[1672884961747,56.96,13.175,13.162,20.0]
[1672884961966,20.0,13.173,13.163,57.01]
[1672884962169,20.0,13.172,13.163,57.01]
[1672884962385,42.83326844,13.172,13.161,168.0864]
[1672884962818,22.83326844,13.171,13.161,168.0864]
[1672884964177,22.83326844,13.171,13.167,312.0]
[1672884965544,70.90900189,13.171,13.167,312.0]
[1672884965732,56.98,13.17,13.167,312.0]
[1672884965963,79.81326844,13.17,13.167,312.0]
[1672884966164,22.83326844,13.169,13.167,312.0]
[1672884969544,20.0,13.168,13.156,57.04]
[1672884969765,145.18270336,13.168,13.156,312.0]
[1672884969955,155.38254031,13.167,13.156,312.0]
[1672884970165,20.0,13.166,13.156,312.0]
[1672884970387,232.38254031,13.166,13.156,312.0]
[1672884970597,107.30680686,13.165,13.156,312.0]
[1672884971006,22.83326844,13.164,13.156,312.0]
[1672884971220,20.0,13.163,13.156,312.0]
[1672884971438,20.0,13.163,13.157,20.0]
[1672884971631,20.0,13.163,13.157,77.04]
[1672884971842,20.0,13.164,13.157,77.04]
[1672884972698,20.0,13.174,13.157,77.04]
[1672884972699,56.97,13.173,13.157,304.24]
[1672884972895,22.83326844,13.169,13.159,20.0]
[1672884973329,22.83326844,13.169,13.161,20.0]
[1672884973750,22.83326844,13.169,13.162,57.02]
[1672884973956,22.83326844,13.169,13.163,20.0]
[1672884974494,22.83326844,13.169,13.164,57.01]
[1672884974888,22.83326844,13.169,13.165,20.0]
[1672884975098,56.96,13.175,13.165,20.0]
[1672884975330,22.83326844,13.173,13.165,20.0]
[1672884975541,20.0,13.172,13.165,20.0]
[1672884975751,20.0,13.172,13.165,332.0]
[1672884975942,22.83326844,13.171,13.165,332.0]
[1672884977006,22.83326844,13.171,13.165,312.0]
[1672884979007,70.90900189,13.171,13.165,312.0]
[1672884979223,20.0,13.169,13.165,312.0]
[1672884979438,20.0,13.168,13.165,312.0]
[1672884979651,99.82326844,13.168,13.165,312.0]
[1672884979864,22.83326844,13.167,13.165,312.0]
[1672884980178,20.0,13.166,13.165,312.0]
[1672884980492,42.83326844,13.166,13.165,312.0]
[1672884981103,20.0,13.166,13.165,312.0]
[1672884981542,71.0259718,13.17,13.165,312.0]
[1672884981962,22.83326844,13.17,13.165,312.0]
[1672884982694,36.28083506,13.173,13.165,312.0]
[1672884982909,36.28083506,13.173,13.166,57.0]
[1672884983098,20.0,13.172,13.166,57.0]
[1672884983308,22.83326844,13.175,13.163,20.0]
[1672884983520,36.28083506,13.178,13.163,20.0]
[1672884983739,36.28083506,13.178,13.165,227.2]
[1672884984062,22.83326844,13.178,13.166,20.0]
[1672884984256,22.83326844,13.178,13.166,304.2]
[1672884984465,22.83326844,13.178,13.166,247.2]
[1672884984696,22.83326844,13.178,13.167,57.0]
[1672884985009,22.83326844,13.178,13.168,20.0]
[1672884985414,22.83326844,13.178,13.169,56.99]
[1672884985840,22.83326844,13.178,13.17,20.0]
[1672884986046,56.95,13.177,13.172,312.0]
[1672884986372,22.83326844,13.176,13.172,312.0]
[1672884986595,20.0,13.175,13.172,312.0]
[1672884987004,22.83326844,13.174,13.164,57.01]
[1672884987222,20.0,13.173,13.164,57.01]
[1672884987746,22.83326844,13.172,13.164,57.01]
[1672884990058,22.83326844,13.172,13.164,369.01]
[1672884992582,22.83326844,13.172,13.165,20.0]
[1672884993841,22.83326844,13.172,13.164,77.01]
[1672884994579,22.83326844,13.172,13.164,57.01]
[1672884995634,22.83326844,13.172,13.165,312.0]
[1672884995818,22.83326844,13.172,13.166,20.0]
[1672884996678,22.83326844,13.172,13.164,57.01]
[1672884998647,22.83326844,13.172,13.165,20.0]
[1672884999073,22.83326844,13.172,13.166,57.0]
[1672884999390,22.83326844,13.172,13.167,20.0]
[1672884999934,22.83326844,13.172,13.167,312.0]
[1672885011104,22.83326844,13.172,13.164,57.01]
[1672885011300,20.0,13.173,13.164,57.01]
[1672885011620,20.0,13.172,13.164,57.01]
[1672885012651,20.0,13.173,13.164,77.01]
[1672885012861,22.83326844,13.174,13.165,20.0]
[1672885013076,36.28083506,13.177,13.165,20.0]
[1672885013298,36.28083506,13.177,13.167,20.0]
[1672885013507,22.83326844,13.178,13.167,132.9922]
[1672885013723,22.83326844,13.178,13.168,76.99]
[1672885014146,22.83326844,13.178,13.169,20.0]
[1672885014664,22.83326844,13.178,13.171,20.0]
[1672885016447,36.28083506,13.18,13.171,20.0]
[1672885016674,56.92,13.185,13.171,20.0]
[1672885016851,56.28083506,13.184,13.171,20.0]
[1672885017182,36.28083506,13.183,13.171,20.0]
[1672885017398,20.0,13.182,13.171,20.0]
[1672885017604,76.93,13.182,13.171,20.0]
[1672885018012,76.93,13.182,13.173,227.2]
[1672885018227,76.93,13.182,13.175,20.0]
[1672885019581,97.69637771,13.193,13.174,340.8056]
[1672885019791,58.77889972,13.193,13.177,20.0]
[1672885020226,58.77889972,13.193,13.178,56.95]
[1672885020424,38.07326844,13.192,13.178,56.95]
[1672885020843,22.83326844,13.191,13.178,56.95]
[1672885021809,22.83326844,13.191,13.179,20.0]
[1672885022225,22.83326844,13.191,13.182,312.0]
[1672885023696,22.83326844,13.191,13.183,20.0]
[1672885024327,22.83326844,13.191,13.182,312.0]
[1672885025367,22.83326844,13.191,13.184,20.0]
[1672885025991,22.83326844,13.191,13.183,56.93]
[1672885027467,22.83326844,13.191,13.184,20.0]
[1672885028002,22.83326844,13.191,13.186,20.0]
[1672885028214,58.77889972,13.193,13.186,20.0]
[1672885028433,20.0,13.192,13.186,20.0]
[1672885029054,20.0,13.192,13.186,332.0]
[1672885029374,20.0,13.192,13.188,20.0]
[1672885030630,20.0,13.192,13.187,56.91]
[1672885031376,42.83326844,13.192,13.185,56.92]
[1672885033075,42.83326844,13.192,13.191,312.0]
[1672885033251,42.83326844,13.192,13.191,297.327]
[1672885033584,78.11326844,13.192,13.191,283.6159]
[1672885033991,78.11326844,13.192,13.182,56.93]
[1672885034200,15.27,13.191,13.182,56.93]
[1672885034613,22.83326844,13.19,13.182,56.93]
[1672885036961,22.83326844,13.19,13.161,40.0]
[1672885036962,20.0,13.188,13.177,56.95]
[1672885037166,20.0,13.186,13.175,56.96]
[1672885037585,35.28,13.185,13.175,56.96]
[1672885037795,74.57904224,13.185,13.175,56.96]
[1672885038009,39.29904224,13.184,13.175,56.96]
[1672885038216,20.0,13.183,13.175,56.96]
[1672885039986,20.0,13.183,13.176,20.0]
[1672885040414,59.29904224,13.186,13.177,56.95]
[1672885040630,74.56904224,13.186,13.177,56.95]
[1672885040831,74.56904224,13.186,13.176,20.0]
[1672885041167,39.29904224,13.185,13.177,56.95]
[1672885041374,20.0,13.184,13.176,76.96]
[1672885042839,20.0,13.184,13.176,56.96]
[1672885043255,20.0,13.184,13.179,312.0]
[1672885043586,42.83326844,13.184,13.179,312.0]
[1672885047479,15.28,13.183,13.179,312.0]
[1672885047657,20.0,13.182,13.179,312.0]
[1672885048007,96.11052579,13.182,13.179,312.0]
[1672885048199,22.83326844,13.181,13.179,312.0]
[1672885048413,76.11052579,13.181,13.169,76.99]
[1672885048727,22.83326844,13.18,13.17,20.0]
[1672885049144,22.83326844,13.18,13.171,56.98]
[1672885050615,22.83326844,13.18,13.171,20.0]
[1672885050835,22.83326844,13.18,13.172,56.97]
[1672885051357,22.83326844,13.18,13.175,312.0]
[1672885053451,76.11052579,13.18,13.175,312.0]
[1672885053882,77.41231068,13.179,13.163,57.01]
[1672885054106,20.0,13.178,13.163,169.946]
[1672885054415,20.0,13.176,13.163,112.936]
[1672885054607,20.0,13.174,13.164,57.01]
[1672885054819,20.0,13.173,13.164,57.01]
[1672885055029,73.27725735,13.173,13.164,57.01]
[1672885055237,135.40956803,13.173,13.164,57.01]
[1672885055449,20.0,13.171,13.164,57.01]
[1672885055679,22.83326844,13.172,13.164,57.01]
[1672885055869,22.83326844,13.17,13.164,57.01]
[1672885056915,74.56904224,13.173,13.165,20.0]
[1672885057131,59.29904224,13.173,13.165,20.0]
[1672885058122,59.29904224,13.173,13.166,57.0]
[1672885058726,59.29904224,13.173,13.165,57.0]
[1672885060410,59.29904224,13.173,13.166,20.0]
[1672885060829,20.0,13.173,13.167,57.0]
[1672885061030,20.0,13.176,13.167,57.0]
[1672885062196,20.0,13.177,13.167,57.0]
[1672885062403,20.0,13.178,13.167,57.0]
[1672885062625,35.27,13.178,13.167,57.0]
[1672885063444,35.27,13.178,13.167,20.0]
[1672885063666,35.27,13.178,13.168,56.99]
[1672885063992,39.29904224,13.177,13.17,312.0]
[1672885064184,20.0,13.176,13.17,312.0]
[1672885069970,20.0,13.176,13.165,20.0]
[1672885070184,20.0,13.176,13.167,20.0]
[1672885070388,39.29904224,13.177,13.167,20.0]
[1672885070592,263.3,13.194,13.169,20.0]
[1672885070593,15.27,13.184,13.169,20.0]
[1672885070927,20.0,13.183,13.169,20.0]
[1672885071120,20.0,13.183,13.17,56.98]
[1672885071451,20.0,13.183,13.171,20.0]
[1672885071862,20.0,13.183,13.173,20.0]
[1672885072071,20.0,13.183,13.174,115.7477]
[1672885072384,20.0,13.183,13.174,172.7177]
[1672885073237,20.0,13.183,13.182,312.0]
[1672885074714,42.83326844,13.183,13.182,312.0]
[1672885075969,42.33326844,13.183,13.182,312.0]
[1672885078918,15.27,13.188,13.182,312.0]
[1672885079130,52.75725735,13.189,13.182,312.0]
[1672885079340,39.29904224,13.189,13.182,312.0]
[1672885080171,58.10326844,13.188,13.182,312.0]
[1672885080594,22.83326844,13.187,13.182,312.0]
[1672885080815,20.0,13.186,13.182,312.0]
[1672885084185,58.77889972,13.193,13.183,76.93]
[1672885084376,20.0,13.192,13.183,20.0]
[1672885084600,20.0,13.192,13.185,20.0]
[1672885085002,20.0,13.192,13.187,20.0]
[1672885085763,20.0,13.192,13.188,56.91]
[1672885085991,20.0,13.192,13.187,20.0]
[1672885087042,20.0,13.192,13.186,56.91]
[1672885087349,20.0,13.192,13.188,312.0]
[1672885087566,58.77889972,13.193,13.189,20.0]
[1672885088190,58.77889972,13.193,13.189,56.9]
[1672885088389,58.77889972,13.193,13.188,20.0]
[1672885088809,58.77889972,13.193,13.189,56.9]
[1672885089030,58.77889972,13.193,13.187,56.91]
[1672885089244,20.0,13.192,13.186,56.91]
[1672885089546,81.61216816,13.193,13.186,56.91]
[1672885089970,81.61216816,13.193,13.185,56.92]
[1672885091141,20.0,13.192,13.185,56.92]
[1672885091350,81.61216816,13.193,13.186,20.0]
[1672885091662,39.29904224,13.194,13.186,20.0]
[1672885092084,39.29904224,13.194,13.187,56.91]
[1672885093127,20.0,13.193,13.187,56.91]
[1672885093331,20.0,13.193,13.186,56.91]
[1672885093661,39.29904224,13.194,13.187,20.0]
[1672885094183,39.29904224,13.194,13.193,312.0]
[1672885094401,116.49493919,13.198,13.193,312.0]
[1672885094920,101.22493919,13.198,13.193,312.0]
[1672885095134,20.0,13.197,13.193,312.0]
[1672885095537,68.46768184,13.197,13.193,312.0]
[1672885096073,121.22493919,13.197,13.193,312.0]
[1672885097670,144.05820763,13.197,13.193,312.0]
[1672885101127,121.22493919,13.197,13.193,312.0]
[1672885101347,20.0,13.197,13.186,284.11]
[1672885101669,20.0,13.198,13.187,20.0]
[1672885102092,20.0,13.198,13.189,20.0]
[1672885102605,20.0,13.198,13.19,56.9]
[1672885104503,20.0,13.198,13.196,312.0]
[1672885105530,35.89312524,13.199,13.19,56.9]
[1672885105746,15.27,13.201,13.19,56.9]
[1672885106068,22.83326844,13.202,13.191,20.0]
[1672885106474,22.83326844,13.202,13.192,56.89]
[1672885106704,20.0,13.2,13.189,56.9]
[1672885106898,20.0,13.199,13.189,56.9]
[1672885107108,146.24365103,13.199,13.188,20.0]
[1672885107439,107.19407552,13.198,13.187,56.91]
[1672885107650,20.0,13.197,13.187,56.91]
[1672885107842,78.72639368,13.197,13.187,56.91]
[1672885108057,22.83326844,13.196,13.187,56.91]
[1672885108271,55.89312524,13.197,13.187,56.91]
[1672885108482,55.89312524,13.197,13.196,312.0]
[1672885109115,55.89312524,13.197,13.196,274.4204]
[1672885112159,55.89312524,13.197,13.186,56.91]
[1672885112690,55.89312524,13.197,13.186,20.0]
[1672885112898,55.89312524,13.197,13.187,56.91]
[1672885113433,20.0,13.195,13.186,56.91]
[1672885113628,20.0,13.194,13.186,56.91]
[1672885113848,20.0,13.194,13.185,56.92]
[1672885114574,20.0,13.194,13.185,76.92]
[1672885114783,20.0,13.194,13.186,20.0]
[1672885115211,20.0,13.194,13.192,312.0]
[1672885116271,20.0,13.195,13.192,312.0]
[1672885119959,19.5,13.195,13.192,312.0]
[1672885122795,0.5,13.195,13.192,312.0]
[1672885123007,35.89312524,13.196,13.192,312.0]
[1672885123838,58.72639368,13.196,13.192,312.0]
[1672885124055,20.0,13.195,13.192,312.0]
[1672885124698,58.72639368,13.196,13.187,56.91]
[1672885124901,58.72639368,13.196,13.188,20.0]
[1672885125425,58.72639368,13.196,13.189,56.9]
[1672885126060,20.0,13.195,13.189,56.9]
[1672885126684,58.72639368,13.196,13.188,20.0]
[1672885126996,20.0,13.195,13.188,20.0]
[1672885127202,58.72639368,13.196,13.19,20.0]
[1672885127845,58.72639368,13.196,13.195,312.0]
[1672885128900,38.91747799,13.21,13.196,58.72]
[1672885129108,38.91747799,13.211,13.196,58.72]
[1672885129357,38.91747799,13.211,13.198,20.0]
[1672885129522,15.26,13.21,13.198,20.0]
[1672885129742,15.26,13.21,13.199,56.86]
[1672885130051,57.26234851,13.21,13.199,56.86]
[1672885131636,15.26,13.21,13.199,56.86]
[1672885131951,15.26,13.21,13.206,312.0]
[1672885132141,20.0,13.209,13.206,312.0]
[1672885132355,20.0,13.211,13.206,312.0]
[1672885132789,15.27,13.21,13.206,312.0]
[1672885133208,20.0,13.209,13.206,312.0]
[1672885134471,20.0,13.21,13.206,312.0]
[1672885142570,102.74466524,13.21,13.206,312.0]
[1672885145737,102.24466524,13.21,13.206,312.0]
[1672885147112,82.74466524,13.21,13.199,56.86]
[1672885147303,117.3229,13.216,13.199,56.86]
[1672885147304,117.3229,13.216,13.201,22.83326844]
[1672885147524,20.0,13.215,13.202,246.1471]
[1672885147815,20.0,13.215,13.203,20.0]
[1672885147961,20.0,13.215,13.203,76.84]
[1672885148200,20.0,13.215,13.204,20.0]
[1672885148371,63.344983,13.219,13.204,20.0]
[1672885148684,63.344983,13.219,13.205,56.83]
[1672885149318,63.344983,13.219,13.206,20.0]
[1672885149742,63.344983,13.219,13.208,20.0]
[1672885150135,63.344983,13.219,13.217,312.0]
[1672885150567,20.0,13.218,13.217,312.0]
[1672885150989,33.061197,13.219,13.217,312.0]
[1672885151204,33.061197,13.219,13.211,56.81]
[1672885151205,0.001197,13.219,13.218,20.0]
[1672885152401,20.0,13.227,13.218,20.0]
[1672885152571,15.27,13.226,13.218,20.0]
[1672885152993,20.0,13.225,13.216,20.0]
[1672885153262,15.27,13.226,13.217,56.78]
[1672885153568,20.0,13.225,13.217,56.78]
[1672885153945,20.0,13.227,13.217,56.78]
[1672885154245,58.36214497,13.227,13.222,312.0]
[1672885154461,48.31,13.226,13.222,312.0]
[1672885154657,20.0,13.225,13.222,311.89161483]
[1672885154868,48.31,13.226,13.222,311.89161483]
[1672885155830,38.36214497,13.227,13.222,311.89161483]
[1672885156021,48.31,13.226,13.222,311.89161483]
[1672885156233,20.0,13.225,13.222,311.89161483]
[1672885157711,58.45737472,13.225,13.222,311.89161483]
[1672885157918,91.17290487,13.225,13.222,311.89161483]
[1672885158116,152.36831828,13.225,13.209,170.0134]
[1672885158333,90.91658064,13.222,13.209,56.81]
[1672885158658,20.0,13.22,13.205,115.1526]
[1672885158873,20.0,13.219,13.206,76.83]
[1672885159076,204.5917695,13.219,13.206,76.83]
[1672885159401,136.2617695,13.218,13.206,76.83]
[1672885159605,20.0,13.217,13.206,76.83]
[1672885159793,204.6017695,13.217,13.206,76.83]
[1672885160007,136.2617695,13.216,13.206,76.83]
[1672885160212,20.0,13.215,13.206,76.83]
[1672885160452,58.86886349,13.215,13.206,76.83]
[1672885160677,38.86886349,13.214,13.206,76.83]
[1672885161054,20.0,13.213,13.206,76.83]
[1672885161274,42.83326844,13.213,13.206,388.83]
[1672885161474,22.83326844,13.212,13.206,368.83]
[1672885163595,58.86886349,13.213,13.206,368.83]
[1672885163800,58.86886349,13.213,13.207,20.0]
[1672885164220,58.86886349,13.213,13.208,56.82]
[1672885165587,20.0,13.211,13.196,20.0]
[1672885165901,117.90479646,13.21,13.198,20.0]
[1672885166109,20.0,13.209,13.198,20.0]
[1672885166327,189.64699441,13.209,13.199,56.86]
[1672885166537,95.07152802,13.208,13.199,56.86]
[1672885166731,20.0,13.207,13.199,56.86]
[1672885166941,133.44432988,13.207,13.199,56.86]
[1672885167268,133.44432988,13.207,13.198,56.86]
[1672885167269,113.44432988,13.206,13.198,56.86]
[1672885167580,20.0,13.205,13.2,312.0]
[1672885167782,42.83326844,13.205,13.2,312.0]
[1672885167999,22.83326844,13.204,13.2,312.0]
[1672885168189,20.0,13.203,13.2,312.0]
[1672885168402,22.83326844,13.204,13.201,20.0]
[1672885168620,38.86886349,13.206,13.201,20.0]
[1672885168830,20.0,13.218,13.202,56.85]
[1672885169043,22.83326844,13.207,13.202,56.85]
[1672885170006,48.28,13.219,13.204,20.0]
[1672885170191,22.83326844,13.215,13.204,20.0]
[1672885170526,22.83326844,13.215,13.205,56.83]
[1672885170734,22.83326844,13.215,13.206,20.0]
[1672885171147,315.04219795,13.219,13.208,20.0]
[1672885171468,22.83326844,13.217,13.21,312.0]
[1672885171790,51.74219795,13.219,13.211,20.0]
[1672885171975,51.74219795,13.219,13.211,76.81]
[1672885172393,22.83326844,13.218,13.211,76.81]
[1672885174631,51.74219795,13.219,13.211,76.81]
[1672885175156,51.74219795,13.219,13.209,170.2157]
[1672885175368,51.74219795,13.219,13.21,20.0]
[1672885175892,51.74219795,13.219,13.212,20.0]
[1672885176207,51.74219795,13.219,13.211,56.81]
[1672885176458,74.57546639,13.219,13.211,56.81]
[1672885177145,74.57546639,13.219,13.21,56.81]
[1672885177359,74.57546639,13.219,13.211,20.0]
[1672885177681,35.50022865,13.221,13.211,20.0]
[1672885177997,58.33349709,13.221,13.213,20.0]
[1672885178309,58.33349709,13.221,13.212,312.0]
[1672885178921,58.33349709,13.221,13.21,56.81]
[1672885181144,110.07569504,13.221,13.21,56.81]
[1672885181366,51.74219795,13.221,13.21,56.81]
[1672885181560,22.83326844,13.223,13.21,56.81]
[1672885181890,22.83326844,13.223,13.213,312.0]
[1672885182084,22.83326844,13.223,13.214,20.0]
[1672885182288,22.83326844,13.223,13.214,76.79]
[1672885182925,22.83326844,13.223,13.214,56.79]
[1672885183123,22.83326844,13.223,13.212,56.8]
[1672885184297,79.58326844,13.223,13.211,56.81]
[1672885184702,218.15746198,13.223,13.21,56.81]
[1672885184914,20.0,13.222,13.209,170.2157]
[1672885185328,20.0,13.22,13.204,56.84]
[1672885185659,20.0,13.22,13.204,110.1636]
[1672885185660,158.5700309,13.219,13.204,110.1636]
[1672885185880,20.0,13.218,13.204,110.1636]
[1672885186071,20.0,13.217,13.204,422.1636]
[1672885186280,20.0,13.216,13.204,422.1636]
[1672885186494,20.0,13.215,13.204,422.1636]
[1672885186697,20.0,13.214,13.204,422.1636]
[1672885186926,20.0,13.213,13.204,422.1636]
[1672885187146,42.83326844,13.213,13.204,422.1636]
[1672885187353,22.83326844,13.212,13.205,56.83]
[1672885192084,22.83326844,13.212,13.205,368.83]
[1672885192710,22.83326844,13.212,13.205,312.0]
[1672885192927,22.83326844,13.212,13.205,368.83]
[1672885193543,20.0,13.213,13.205,56.83]
[1672885193757,22.83326844,13.212,13.205,56.83]
[1672885195029,60.70022865,13.213,13.205,56.83]
[1672885195221,83.53349709,13.213,13.205,56.83]
[1672885195436,83.53349709,13.213,13.204,110.1636]
[1672885196178,135.27569504,13.213,13.204,110.1636]
[1672885196395,243.40746198,13.213,13.204,110.1636]
[1672885196585,20.0,13.212,13.204,110.1636]
[1672885196911,143.77419354,13.211,13.204,110.1636]
[1672885197132,166.60746198,13.211,13.204,110.1636]
[1672885197335,20.0,13.209,13.204,110.1636]
[1672885197743,22.83326844,13.208,13.204,110.1636]
[1672885198319,22.83326844,13.208,13.197,56.87]
[1672885198496,22.83326844,13.208,13.198,118.3794]
[1672885198901,22.83326844,13.208,13.199,56.86]
[1672885210270,22.83326844,13.208,13.194,56.88]
[1672885210271,20.0,13.206,13.194,56.88]
[1672885210478,20.0,13.206,13.193,56.88]
[1672885210666,192.10569504,13.205,13.193,56.88]
[1672885210882,20.0,13.204,13.193,56.88]
[1672885211116,20.0,13.203,13.193,56.88]
[1672885213109,42.83326844,13.203,13.193,56.88]
[1672885213634,42.83326844,13.203,13.19,76.9]
[1672885213831,42.83326844,13.203,13.19,56.9]
[1672885214485,20.0,13.203,13.19,284.1]
[1672885216379,20.0,13.203,13.19,596.1]
[1672885216674,20.0,13.203,13.191,20.0]
[1672885217093,20.0,13.203,13.193,20.0]
[1672885217501,20.0,13.203,13.194,56.88]
[1672885218569,20.0,13.203,13.193,20.0]
[1672885218974,60.70022865,13.203,13.194,56.88]
[1672885219511,60.70022865,13.203,13.193,20.0]
[1672885219727,60.70022865,13.203,13.192,56.89]
[1672885220562,60.70022865,13.203,13.193,20.0]
[1672885220989,60.70022865,13.203,13.193,76.88]
[1672885221191,60.70022865,13.203,13.193,56.88]
[1672885221515,22.83326844,13.202,13.193,56.88]
[1672885222224,60.70022865,13.203,13.193,284.08]
[1672885222434,60.70022865,13.203,13.194,20.0]
[1672885222858,60.70022865,13.203,13.196,20.0]
[1672885224138,22.83326844,13.202,13.195,56.88]
[1672885224665,22.83326844,13.202,13.193,20.0]
[1672885224666,22.83326844,13.202,13.194,284.08]